[Event "Lune-dì-rapid!"]
[Site "Chess.com"]
[Date "2020.04.13"]
[Round "1"]
[White "pedrak"]
[Black "crippo"]
[Result "1-0"]
[WhiteElo "1586"]
[BlackElo "1468"]
[TimeControl "720+3"]
[EndTime "6:08:16 PDT"]
[Termination "pedrak ha vinto per scaccomatto"]

1. d4 {[%clk 0:12:01.6]} 1... d5 {[%clk 0:12:00.9]} 2. Nf3 {[%clk 0:12:02.3]}
2... Nf6 {[%clk 0:11:59.2]} 3. Bf4 {[%clk 0:12:02.8]} 3... e6 {[%clk 0:12:00.2]}
4. e3 {[%clk 0:12:03.2]} 4... c6 {[%clk 0:12:01.5]} 5. Bd3 {[%clk 0:12:03.4]}
5... Nbd7 {[%clk 0:12:02.5]} 6. O-O {[%clk 0:12:04]} 6... Ne4 {[%clk 0:12:02.2]}
7. Nbd2 {[%clk 0:12:01.8]} 7... f5 {[%clk 0:12:03.2]} 8. Ne5 {[%clk 0:12:02.2]}
8... Be7 {[%clk 0:12:02.6]} 9. f3 {[%clk 0:12:02.6]} 9... Nxd2 {[%clk
0:11:52.5]} 10. Qxd2 {[%clk 0:12:03.4]} 10... O-O {[%clk 0:11:54.2]} 11. c3
{[%clk 0:11:57.4]} 11... Nxe5 {[%clk 0:11:54.4]} 12. Bxe5 {[%clk 0:11:57.7]}
12... Bd6 {[%clk 0:11:51.1]} 13. Bxd6 {[%clk 0:11:47]} 13... Qxd6 {[%clk
0:11:52.2]} 14. Rae1 {[%clk 0:11:47.9]} 14... Bd7 {[%clk 0:11:50.4]} 15. e4
{[%clk 0:11:49.2]} 15... fxe4 {[%clk 0:11:51.6]} 16. fxe4 {[%clk 0:11:50.4]}
16... Rxf1+ {[%clk 0:11:42.2]} 17. Rxf1 {[%clk 0:11:51.4]} 17... Rf8 {[%clk
0:11:41]} 18. e5 {[%clk 0:11:48.9]} 18... Qe7 {[%clk 0:11:39.9]} 19. Rxf8+
{[%clk 0:11:46.4]} 19... Kxf8 {[%clk 0:11:39.6]} 20. Qf2+ {[%clk 0:11:47.7]}
20... Kg8 {[%clk 0:11:37.1]} 21. Qf3 {[%clk 0:11:40.3]} 21... Be8 {[%clk
0:11:34.1]} 22. Qg3 {[%clk 0:11:37.9]} 22... Qf7 {[%clk 0:11:24.6]} 23. Qh4
{[%clk 0:11:34.3]} 23... g6 {[%clk 0:11:19.9]} 24. Qd8 {[%clk 0:11:29.8]} 24...
a6 {[%clk 0:11:19.2]} 25. Be2 {[%clk 0:11:26.3]} 25... Kg7 {[%clk 0:11:19.1]}
26. Bg4 {[%clk 0:11:18.8]} 26... h5 {[%clk 0:11:15.7]} 27. Qg5 {[%clk
0:11:04.8]} 27... hxg4 {[%clk 0:11:11.5]} 28. Qxg4 {[%clk 0:11:01.8]} 28... Qf5
{[%clk 0:11:11.6]} 29. Qd1 {[%clk 0:10:57.5]} 29... g5 {[%clk 0:11:10.5]} 30. h3
{[%clk 0:10:55.4]} 30... Bg6 {[%clk 0:11:10.9]} 31. Qb3 {[%clk 0:10:48.3]} 31...
Qf7 {[%clk 0:11:08.4]} 32. a4 {[%clk 0:10:45.3]} 32... Bd3 {[%clk 0:11:05.5]}
33. Qb4 {[%clk 0:10:44.7]} 33... Be4 {[%clk 0:10:57.6]} 34. a5 {[%clk
0:10:36.2]} 34... Kh6 {[%clk 0:10:57.9]} 35. Qd6 {[%clk 0:10:34.8]} 35... Kh5
{[%clk 0:10:58.2]} 36. Qd8 {[%clk 0:10:32.9]} 36... Kh4 {[%clk 0:10:51.6]} 37.
b4 {[%clk 0:09:59.4]} 37... Kg3 {[%clk 0:10:51.8]} 38. Qxg5# {[%clk 0:10:00.6]}
1-0

[Event "Lune-dì-rapid!"]
[Site "Chess.com"]
[Date "2020.04.13"]
[Round "1"]
[White "caramante"]
[Black "BAKR1980"]
[Result "0-1"]
[WhiteElo "1532"]
[BlackElo "1535"]
[TimeControl "720+3"]
[EndTime "6:09:05 PDT"]
[Termination "BAKR1980 ha vinto per abbandono"]

1. Nf3 {[%clk 0:11:38.6]} 1... d5 {[%clk 0:12:00.2]} 2. d4 {[%clk 0:11:39.3]}
2... Nc6 {[%clk 0:11:59.3]} 3. c3 {[%clk 0:11:40.3]} 3... Bg4 {[%clk 0:11:55.9]}
4. Nbd2 {[%clk 0:11:40.8]} 4... Qd7 {[%clk 0:11:56.5]} 5. h3 {[%clk 0:11:41.4]}
5... Bh5 {[%clk 0:11:46.6]} 6. g4 {[%clk 0:11:41.3]} 6... Bg6 {[%clk 0:11:47.2]}
7. Qb3 {[%clk 0:11:37.6]} 7... O-O-O {[%clk 0:11:41.3]} 8. Bg2 {[%clk
0:11:35.8]} 8... e6 {[%clk 0:11:40.4]} 9. O-O {[%clk 0:11:33.6]} 9... h5 {[%clk
0:11:36.3]} 10. g5 {[%clk 0:11:34.5]} 10... f6 {[%clk 0:11:34.9]} 11. h4 {[%clk
0:11:34.9]} 11... fxg5 {[%clk 0:11:35.5]} 12. Nxg5 {[%clk 0:11:36]} 12... Be7
{[%clk 0:11:27.7]} 13. Ndf3 {[%clk 0:11:31.5]} 13... Nf6 {[%clk 0:11:18.2]} 14.
Bf4 {[%clk 0:11:22.7]} 14... Ne4 {[%clk 0:10:58.3]} 15. Rad1 {[%clk 0:10:58.5]}
15... Rdf8 {[%clk 0:10:46.3]} 16. Nxe4 {[%clk 0:10:51.4]} 16... dxe4 {[%clk
0:10:35.8]} 17. Ne5 {[%clk 0:10:51.7]} 17... Nxe5 {[%clk 0:10:13.7]} 18. Bxe5
{[%clk 0:10:41.8]} 18... Bxh4 {[%clk 0:10:06.9]} 19. Bh3 {[%clk 0:10:41.5]}
19... Bf5 {[%clk 0:09:59.9]} 20. Bg2 {[%clk 0:10:37.6]} 20... Bf6 {[%clk
0:09:41.4]} 21. Bxf6 {[%clk 0:10:22.9]} 21... gxf6 {[%clk 0:09:33.1]} 22. d5
{[%clk 0:10:24.8]} 22... Rfg8 {[%clk 0:09:14.6]} 23. dxe6 {[%clk 0:10:14]} 23...
Qg7 {[%clk 0:09:10.6]} 0-1

[Event "Lune-dì-rapid!"]
[Site "Chess.com"]
[Date "2020.04.13"]
[Round "1"]
[White "sirmale49"]
[Black "sergiodone"]
[Result "1-0"]
[WhiteElo "1406"]
[BlackElo "1183"]
[TimeControl "720+3"]
[EndTime "6:16:40 PDT"]
[Termination "sirmale49 ha vinto per abbandono"]

1. f4 {[%clk 0:11:56.4]} 1... e5 {[%clk 0:11:59.1]} 2. d3 {[%clk 0:11:55.5]}
2... d6 {[%clk 0:11:51]} 3. Nf3 {[%clk 0:11:55.9]} 3... Nc6 {[%clk 0:11:43.6]}
4. e3 {[%clk 0:11:54.6]} 4... Bg4 {[%clk 0:11:42.8]} 5. g3 {[%clk 0:11:54.8]}
5... Nf6 {[%clk 0:11:20.5]} 6. Bg2 {[%clk 0:11:55.7]} 6... exf4 {[%clk
0:11:16.3]} 7. exf4 {[%clk 0:11:52.4]} 7... Be7 {[%clk 0:11:06.8]} 8. O-O {[%clk
0:11:52.4]} 8... Nd4 {[%clk 0:11:04.9]} 9. Be3 {[%clk 0:11:49.1]} 9... c5 {[%clk
0:10:29.2]} 10. c3 {[%clk 0:11:48.4]} 10... Nf5 {[%clk 0:10:18.9]} 11. Bd2
{[%clk 0:11:42.3]} 11... Qb6 {[%clk 0:10:14]} 12. b3 {[%clk 0:11:30.1]} 12...
c4+ {[%clk 0:10:08.8]} 13. d4 {[%clk 0:11:31.7]} 13... O-O-O {[%clk 0:09:54.7]}
14. h3 {[%clk 0:11:32.1]} 14... Bxf3 {[%clk 0:09:37.4]} 15. Qxf3 {[%clk
0:11:24.5]} 15... h5 {[%clk 0:09:35.4]} 16. Re1 {[%clk 0:11:21.3]} 16... Rd7
{[%clk 0:09:31.6]} 17. Na3 {[%clk 0:11:02.1]} 17... d5 {[%clk 0:09:21.6]} 18.
bxc4 {[%clk 0:10:35.1]} 18... Bxa3 {[%clk 0:09:21.9]} 19. Rab1 {[%clk 0:10:35]}
19... Qc7 {[%clk 0:09:17.4]} 20. cxd5 {[%clk 0:10:30.6]} 20... Nxd5 {[%clk
0:09:04.9]} 21. Re5 {[%clk 0:10:18.2]} 21... Nfe7 {[%clk 0:09:00.1]} 22. Rb3
{[%clk 0:09:59.9]} 22... Bd6 {[%clk 0:08:56.7]} 23. Rxd5 {[%clk 0:09:59.7]}
23... Nxd5 {[%clk 0:08:57.4]} 24. Qxd5 {[%clk 0:10:00.3]} 24... h4 {[%clk
0:08:32.7]} 25. c4 {[%clk 0:09:37.9]} 25... hxg3 {[%clk 0:08:31.1]} 26. Qg5
{[%clk 0:08:18.3]} 26... f6 {[%clk 0:08:25.2]} 27. Qg4 {[%clk 0:07:13.7]} 27...
g5 {[%clk 0:08:11.2]} 28. Rxb7 {[%clk 0:07:10.1]} 28... Rd8 {[%clk 0:07:04.9]}
29. Rxc7+ {[%clk 0:07:09.3]} 29... Kxc7 {[%clk 0:07:05.4]} 30. Ba5+ {[%clk
0:07:09.4]} 30... Kc8 {[%clk 0:06:51.3]} 31. Bxd8 {[%clk 0:07:09.2]} 31... Kxd8
{[%clk 0:06:51.9]} 32. fxg5 {[%clk 0:07:06.3]} 32... fxg5 {[%clk 0:05:55.3]} 33.
Qxg5+ {[%clk 0:06:51.7]} 33... Be7 {[%clk 0:05:38.5]} 34. Qa5+ {[%clk 0:06:34]}
34... Ke8 {[%clk 0:05:39.3]} 35. Bc6 {[%clk 0:06:32.5]} 1-0

[Event "Lune-dì-rapid!"]
[Site "Chess.com"]
[Date "2020.04.13"]
[Round "1"]
[White "Delsoldato03"]
[Black "SanSecondoPR"]
[Result "1-0"]
[WhiteElo "1169"]
[BlackElo "1237"]
[TimeControl "720+3"]
[EndTime "6:18:56 PDT"]
[Termination "Delsoldato03 ha vinto per abbandono"]

1. d4 {[%clk 0:11:57.5]} 1... d5 {[%clk 0:12:00.1]} 2. c4 {[%clk 0:11:57.6]}
2... e5 {[%clk 0:11:59.5]} 3. dxe5 {[%clk 0:11:54.5]} 3... d4 {[%clk 0:12:01.2]}
4. Nf3 {[%clk 0:11:51.1]} 4... Nc6 {[%clk 0:12:02.2]} 5. a3 {[%clk 0:11:41.1]}
5... Bg4 {[%clk 0:12:02.5]} 6. e3 {[%clk 0:11:27.9]} 6... Nge7 {[%clk
0:11:53.7]} 7. exd4 {[%clk 0:11:23]} 7... Nxd4 {[%clk 0:11:50.6]} 8. Be2 {[%clk
0:11:15.6]} 8... Bxf3 {[%clk 0:11:47]} 9. Bxf3 {[%clk 0:11:15.9]} 9... Nxf3+
{[%clk 0:11:41.7]} 10. Qxf3 {[%clk 0:11:16.2]} 10... Ng6 {[%clk 0:11:26.3]} 11.
O-O {[%clk 0:11:09.2]} 11... Rb8 {[%clk 0:11:19.9]} 12. Re1 {[%clk 0:10:58.1]}
12... Be7 {[%clk 0:11:18]} 13. e6 {[%clk 0:10:58.1]} 13... O-O {[%clk
0:11:16.5]} 14. exf7+ {[%clk 0:10:54.2]} 14... Rxf7 {[%clk 0:11:16.2]} 15. Qb3
{[%clk 0:10:19.4]} 15... Bc5 {[%clk 0:11:07.6]} 16. Be3 {[%clk 0:09:59.1]} 16...
Qe7 {[%clk 0:10:53.3]} 17. Qc3 {[%clk 0:09:40.4]} 17... Bxe3 {[%clk 0:10:30]}
18. Qxe3 {[%clk 0:09:36.3]} 18... Qf6 {[%clk 0:10:24.6]} 19. Nc3 {[%clk
0:09:24.7]} 19... Rbf8 {[%clk 0:10:21.1]} 20. f3 {[%clk 0:08:53.6]} 20... b6
{[%clk 0:10:01.5]} 21. b4 {[%clk 0:08:18.1]} 21... c6 {[%clk 0:09:59]} 22. Ne4
{[%clk 0:08:13.8]} 22... Qe5 {[%clk 0:09:17.7]} 23. c5 {[%clk 0:07:54.9]} 23...
Kh8 {[%clk 0:09:03.4]} 24. cxb6 {[%clk 0:07:53.1]} 24... axb6 {[%clk 0:09:02.6]}
25. Qxb6 {[%clk 0:07:38]} 25... Qb2 {[%clk 0:08:37.9]} 26. Qf2 {[%clk
0:07:24.8]} 26... Qb3 {[%clk 0:08:29.8]} 27. Qe3 {[%clk 0:07:10.9]} 27... Qc4
{[%clk 0:08:18.4]} 28. Qc3 {[%clk 0:06:56.7]} 28... Qa6 {[%clk 0:08:01.4]} 29.
Ng5 {[%clk 0:06:10.1]} 29... Rf5 {[%clk 0:07:39.5]} 30. Ne6 {[%clk 0:06:06]}
30... R8f7 {[%clk 0:07:00.5]} 31. Rad1 {[%clk 0:05:45.1]} 31... Rd5 {[%clk
0:06:47.4]} 32. Nc5 {[%clk 0:05:33.8]} 32... Qa7 {[%clk 0:06:42.1]} 33. Re8+
{[%clk 0:05:30.4]} 33... Nf8 {[%clk 0:06:31.1]} 34. Rde1 {[%clk 0:05:06.3]}
34... Qd7 {[%clk 0:06:15.9]} 35. Nxd7 {[%clk 0:05:04.9]} 35... Rdxd7 {[%clk
0:06:11.3]} 36. Qxc6 {[%clk 0:05:01.3]} 36... g6 {[%clk 0:06:04.9]} 37. a4
{[%clk 0:04:45.4]} 37... Rc7 {[%clk 0:05:59]} 38. Rxf8+ {[%clk 0:04:42]} 38...
Kg7 {[%clk 0:05:58]} 39. Rxf7+ {[%clk 0:04:43.2]} 39... Rxf7 {[%clk 0:05:58.1]}
1-0

[Event "Lune-dì-rapid!"]
[Site "Chess.com"]
[Date "2020.04.13"]
[Round "2"]
[White "crippo"]
[Black "SanSecondoPR"]
[Result "1-0"]
[WhiteElo "1507"]
[BlackElo "1211"]
[TimeControl "720+3"]
[EndTime "6:28:34 PDT"]
[Termination "crippo ha vinto per abbandono"]

1. e4 {[%clk 0:11:56]} 1... e5 {[%clk 0:12:00.8]} 2. Nf3 {[%clk 0:11:48.9]} 2...
Nc6 {[%clk 0:12:01.7]} 3. Bc4 {[%clk 0:11:49.3]} 3... Nf6 {[%clk 0:12:02]} 4. d3
{[%clk 0:11:50.6]} 4... Bc5 {[%clk 0:11:58.6]} 5. Bg5 {[%clk 0:11:52.2]} 5...
O-O {[%clk 0:11:56.1]} 6. Nc3 {[%clk 0:11:53]} 6... h6 {[%clk 0:11:50.6]} 7. Bh4
{[%clk 0:11:52.7]} 7... g5 {[%clk 0:11:51]} 8. Bg3 {[%clk 0:11:54.6]} 8... d6
{[%clk 0:11:49.7]} 9. Qd2 {[%clk 0:11:52.6]} 9... Ne7 {[%clk 0:11:45.3]} 10.
Nxg5 {[%clk 0:11:47.4]} 10... d5 {[%clk 0:11:23.4]} 11. exd5 {[%clk 0:11:42]}
11... Ng6 {[%clk 0:11:04.8]} 12. Nge4 {[%clk 0:11:38.4]} 12... Be7 {[%clk
0:10:58.9]} 13. Nxf6+ {[%clk 0:11:27.3]} 13... Bxf6 {[%clk 0:10:58.7]} 14. Qxh6
{[%clk 0:11:09.8]} 14... Bg5 {[%clk 0:10:54.2]} 15. Qh5 {[%clk 0:11:11.3]} 15...
Qf6 {[%clk 0:10:41.9]} 16. O-O {[%clk 0:11:03.4]} 16... Bf5 {[%clk 0:10:40.2]}
17. d6 {[%clk 0:09:59]} 17... cxd6 {[%clk 0:10:35.5]} 18. Nd5 {[%clk 0:09:57.2]}
18... Qd8 {[%clk 0:10:22.9]} 19. f4 {[%clk 0:09:52.5]} 19... exf4 {[%clk
0:10:11.1]} 20. Bxf4 {[%clk 0:09:53.7]} 20... Nxf4 {[%clk 0:09:41.2]} 21. Nxf4
{[%clk 0:09:54.3]} 21... Bg6 {[%clk 0:09:40.2]} 22. Qxg6+ {[%clk 0:09:52.8]}
22... Kh8 {[%clk 0:09:21]} 23. Qh5+ {[%clk 0:09:40.8]} 23... Kg7 {[%clk
0:09:14.6]} 24. Bxf7 {[%clk 0:08:22.7]} 24... Rxf7 {[%clk 0:09:09.3]} 25. Ne6+
{[%clk 0:08:23.4]} 1-0

[Event "Lune-dì-rapid!"]
[Site "Chess.com"]
[Date "2020.04.13"]
[Round "2"]
[White "BAKR1980"]
[Black "ottovolante"]
[Result "1-0"]
[WhiteElo "1548"]
[BlackElo "991"]
[TimeControl "720+3"]
[EndTime "6:33:12 PDT"]
[Termination "BAKR1980 ha vinto per scaccomatto"]

1. e4 {[%clk 0:12:02]} 1... e5 {[%clk 0:11:58.9]} 2. Nf3 {[%clk 0:12:02.8]} 2...
Nc6 {[%clk 0:11:59.1]} 3. Bc4 {[%clk 0:12:03.2]} 3... h6 {[%clk 0:11:56.6]} 4.
O-O {[%clk 0:12:02.9]} 4... Be7 {[%clk 0:11:58.2]} 5. c3 {[%clk 0:12:03.6]} 5...
Nf6 {[%clk 0:12:00.1]} 6. d4 {[%clk 0:12:03.5]} 6... d6 {[%clk 0:11:57.7]} 7.
Re1 {[%clk 0:12:03]} 7... a6 {[%clk 0:11:45.8]} 8. a4 {[%clk 0:12:01.9]} 8...
Bd7 {[%clk 0:11:34.6]} 9. b4 {[%clk 0:11:38.6]} 9... Be6 {[%clk 0:11:18.9]} 10.
d5 {[%clk 0:11:38.3]} 10... Bg4 {[%clk 0:11:13.6]} 11. dxc6 {[%clk 0:11:38.1]}
11... bxc6 {[%clk 0:11:15.1]} 12. Nbd2 {[%clk 0:11:26.5]} 12... O-O {[%clk
0:11:15.9]} 13. Qb3 {[%clk 0:11:24.1]} 13... Qd7 {[%clk 0:11:04.4]} 14. Bb2
{[%clk 0:11:18.4]} 14... Rab8 {[%clk 0:11:05.5]} 15. Bxa6 {[%clk 0:11:14.3]}
15... c5 {[%clk 0:11:03.9]} 16. Bb5 {[%clk 0:10:37.9]} 16... c6 {[%clk
0:11:01.6]} 17. Be2 {[%clk 0:10:39.5]} 17... cxb4 {[%clk 0:10:57.8]} 18. cxb4
{[%clk 0:10:40.5]} 18... c5 {[%clk 0:10:55.3]} 19. b5 {[%clk 0:10:40]} 19... Be6
{[%clk 0:10:49.3]} 20. Bc4 {[%clk 0:10:39.1]} 20... Bd8 {[%clk 0:10:09.7]} 21.
a5 {[%clk 0:10:03.1]} 21... Ra8 {[%clk 0:09:52.6]} 22. b6 {[%clk 0:09:53]} 22...
Re8 {[%clk 0:09:40.7]} 23. a6 {[%clk 0:09:28.9]} 23... Bxc4 {[%clk 0:09:37.1]}
24. Nxc4 {[%clk 0:09:30.2]} 24... Qc6 {[%clk 0:09:17.6]} 25. b7 {[%clk
0:09:17.3]} 25... Rb8 {[%clk 0:09:10.4]} 26. a7 {[%clk 0:08:10.4]} 26... Rxb7
{[%clk 0:09:11.5]} 27. Qxb7 {[%clk 0:08:06.9]} 27... Qxb7 {[%clk 0:09:12.4]} 28.
a8=Q {[%clk 0:08:07.4]} 28... Qb3 {[%clk 0:08:54.8]} 29. Nxd6 {[%clk 0:07:57.4]}
29... Qxb2 {[%clk 0:08:38.1]} 30. Nxe8 {[%clk 0:07:56.1]} 30... Ng4 {[%clk
0:08:28.9]} 31. Rf1 {[%clk 0:07:28.6]} 31... Qb6 {[%clk 0:08:11]} 32. h3 {[%clk
0:07:18.3]} 32... Nf6 {[%clk 0:08:07.2]} 33. Nxf6+ {[%clk 0:07:19.3]} 33... gxf6
{[%clk 0:08:07.5]} 34. Rfb1 {[%clk 0:07:19.2]} 34... Qd6 {[%clk 0:08:06.3]} 35.
Rb8 {[%clk 0:07:17.7]} 35... Kg7 {[%clk 0:08:03.6]} 36. Rxd8 {[%clk 0:07:18.7]}
36... Qb6 {[%clk 0:08:00.4]} 37. Rg8+ {[%clk 0:06:54.3]} 37... Kh7 {[%clk
0:08:00.7]} 38. Qf8 {[%clk 0:06:43.2]} 38... Qb1+ {[%clk 0:07:47.7]} 39. Rxb1
{[%clk 0:06:42.3]} 39... h5 {[%clk 0:07:46.9]} 40. Qg7# {[%clk 0:06:41.8]} 1-0

[Event "Lune-dì-rapid!"]
[Site "Chess.com"]
[Date "2020.04.13"]
[Round "2"]
[White "sirmale49"]
[Black "pedrak"]
[Result "0-1"]
[WhiteElo "1397"]
[BlackElo "1674"]
[TimeControl "720+3"]
[EndTime "6:34:23 PDT"]
[Termination "pedrak ha vinto per abbandono"]

1. f4 {[%clk 0:11:56]} 1... d5 {[%clk 0:11:57.1]} 2. Nf3 {[%clk 0:11:57.4]} 2...
Bf5 {[%clk 0:11:57.8]} 3. g3 {[%clk 0:11:58.1]} 3... e6 {[%clk 0:11:58.7]} 4.
Bg2 {[%clk 0:11:55.5]} 4... h6 {[%clk 0:11:59.6]} 5. O-O {[%clk 0:11:56.2]} 5...
Nf6 {[%clk 0:12:00.9]} 6. Nc3 {[%clk 0:11:56.3]} 6... c6 {[%clk 0:12:01.9]} 7.
b3 {[%clk 0:11:48.4]} 7... Be7 {[%clk 0:12:02.2]} 8. Bb2 {[%clk 0:11:49.6]} 8...
O-O {[%clk 0:12:03]} 9. d3 {[%clk 0:11:43]} 9... Nbd7 {[%clk 0:12:03]} 10. d4
{[%clk 0:11:43.3]} 10... Ne4 {[%clk 0:12:00.7]} 11. Ne5 {[%clk 0:11:36]} 11...
Nxc3 {[%clk 0:11:56.3]} 12. Bxc3 {[%clk 0:11:36.3]} 12... Nf6 {[%clk 0:11:57.7]}
13. h3 {[%clk 0:10:53.1]} 13... Be4 {[%clk 0:11:53.5]} 14. Nf3 {[%clk 0:10:32]}
14... Qc7 {[%clk 0:11:38.2]} 15. Nd2 {[%clk 0:10:26.6]} 15... Bxg2 {[%clk
0:11:38.4]} 16. Kxg2 {[%clk 0:10:27.1]} 16... Rfe8 {[%clk 0:11:38]} 17. Re1
{[%clk 0:10:10]} 17... Ne4 {[%clk 0:11:37]} 18. Bb2 {[%clk 0:10:01.4]} 18... f5
{[%clk 0:11:35.8]} 19. a3 {[%clk 0:09:37.8]} 19... Kh7 {[%clk 0:11:24.7]} 20. e3
{[%clk 0:09:24.7]} 20... Rg8 {[%clk 0:11:01.8]} 21. c4 {[%clk 0:08:46.7]} 21...
g5 {[%clk 0:11:00.3]} 22. Nxe4 {[%clk 0:08:12.5]} 22... fxe4 {[%clk 0:10:59.4]}
23. Rf1 {[%clk 0:07:29]} 23... Raf8 {[%clk 0:10:30.1]} 24. Qg4 {[%clk 0:07:15]}
24... gxf4 {[%clk 0:09:23.3]} 25. Qxe6 {[%clk 0:07:13]} 25... f3+ {[%clk
0:06:52.2]} 26. Kh1 {[%clk 0:06:32.6]} 26... Rg6 {[%clk 0:06:39.6]} 27. Qe5
{[%clk 0:06:20.7]} 27... Bd6 {[%clk 0:06:40.7]} 28. Qh5 {[%clk 0:06:12.7]} 28...
Rg5 {[%clk 0:06:30.4]} 29. Qh4 {[%clk 0:06:04.4]} 29... Bxg3 {[%clk 0:06:30.6]}
0-1

[Event "Lune-dì-rapid!"]
[Site "Chess.com"]
[Date "2020.04.13"]
[Round "2"]
[White "Delsoldato03"]
[Black "caramante"]
[Result "1/2-1/2"]
[WhiteElo "1204"]
[BlackElo "1479"]
[TimeControl "720+3"]
[EndTime "6:40:09 PDT"]
[Termination "Patta d'accordo"]

1. d4 {[%clk 0:12:02.3]} 1... Nf6 {[%clk 0:11:35.9]} 2. c4 {[%clk 0:12:02.4]}
2... g6 {[%clk 0:11:29.4]} 3. Nc3 {[%clk 0:12:01.7]} 3... Bg7 {[%clk 0:11:31.3]}
4. e4 {[%clk 0:12:00.6]} 4... d6 {[%clk 0:11:33.3]} 5. f3 {[%clk 0:12:01.4]}
5... O-O {[%clk 0:11:35]} 6. Be3 {[%clk 0:11:57.1]} 6... c6 {[%clk 0:11:36.8]}
7. Bd3 {[%clk 0:11:40.5]} 7... Qc7 {[%clk 0:11:38.5]} 8. Nge2 {[%clk 0:11:39.7]}
8... Nbd7 {[%clk 0:11:38.2]} 9. O-O {[%clk 0:11:40.1]} 9... e5 {[%clk 0:11:39]}
10. Qd2 {[%clk 0:11:22.7]} 10... exd4 {[%clk 0:11:39.1]} 11. Nxd4 {[%clk
0:11:16.4]} 11... Ne5 {[%clk 0:11:40.8]} 12. Bh6 {[%clk 0:10:58.9]} 12... Nxd3
{[%clk 0:11:37.6]} 13. Bxg7 {[%clk 0:10:54.2]} 13... Kxg7 {[%clk 0:11:29.9]} 14.
Qxd3 {[%clk 0:10:54.6]} 14... Be6 {[%clk 0:11:26.8]} 15. b3 {[%clk 0:10:50.8]}
15... Rad8 {[%clk 0:11:26.9]} 16. Rad1 {[%clk 0:10:48.3]} 16... a6 {[%clk
0:11:22.4]} 17. Nde2 {[%clk 0:10:25.6]} 17... Bc8 {[%clk 0:11:11]} 18. Qe3
{[%clk 0:10:18.6]} 18... Rfe8 {[%clk 0:11:10.5]} 19. Na4 {[%clk 0:09:46.6]}
19... b5 {[%clk 0:11:07.4]} 20. cxb5 {[%clk 0:09:36.8]} 20... cxb5 {[%clk
0:11:08.1]} 21. Qb6 {[%clk 0:09:09]} 21... Qxb6+ {[%clk 0:11:02.4]} 22. Nxb6
{[%clk 0:09:04.7]} 22... Bb7 {[%clk 0:11:02.1]} 23. Nc3 {[%clk 0:09:00.6]} 23...
Nh5 {[%clk 0:10:49.9]} 24. Ncd5 {[%clk 0:08:57.5]} 24... f5 {[%clk 0:10:35.5]}
25. Rc1 {[%clk 0:08:43.2]} 25... Bxd5 {[%clk 0:10:31.3]} 26. Nxd5 {[%clk
0:08:14.9]} 26... fxe4 {[%clk 0:10:31]} 27. Rc7+ {[%clk 0:08:16.2]} 27... Kh6
{[%clk 0:10:30.8]} 28. fxe4 {[%clk 0:07:56.9]} 28... Rxe4 {[%clk 0:10:27.8]} 29.
Rff7 {[%clk 0:07:50.5]} 29... Rd4 {[%clk 0:10:13.4]} 30. Rxh7+ {[%clk
0:07:50.3]} 30... Kg5 {[%clk 0:10:13.3]} 31. Ne3 {[%clk 0:07:12.6]} 31... Re8
{[%clk 0:09:53.4]} 32. Rce7 {[%clk 0:07:07.6]} 32... Re4 {[%clk 0:09:35.4]} 33.
Rxe8 {[%clk 0:07:03.8]} 33... Rxe8 {[%clk 0:09:35.8]} 34. Nd5 {[%clk 0:06:48.8]}
34... Re1+ {[%clk 0:09:30.5]} 35. Kf2 {[%clk 0:06:45.1]} 35... Rd1 {[%clk
0:09:32.5]} 36. Nc3 {[%clk 0:06:35.9]} 36... Rd2+ {[%clk 0:09:30.7]} 37. Kf1
{[%clk 0:06:24.2]} 37... Rc2 {[%clk 0:09:29.1]} 38. Rc7 {[%clk 0:06:20.5]} 38...
Kh6 {[%clk 0:09:14.8]} 39. a4 {[%clk 0:06:09.2]} 39... b4 {[%clk 0:09:15.2]} 40.
Nd5 {[%clk 0:06:08.9]} 40... Rb2 {[%clk 0:09:03.1]} 41. Nxb4 {[%clk 0:06:08.9]}
41... Rxb3 {[%clk 0:09:05]} 42. Nxa6 {[%clk 0:06:07.8]} 42... Nf4 {[%clk
0:09:02.1]} 43. g3 {[%clk 0:05:43.9]} 43... Nd3 {[%clk 0:08:38.9]} 44. Rd7
{[%clk 0:05:40]} 44... Rb6 {[%clk 0:08:33.4]} 45. Nc7 {[%clk 0:05:27.3]} 45...
Ne5 {[%clk 0:08:33.6]} 46. Rd8 {[%clk 0:05:13.4]} 46... Ng4 {[%clk 0:08:29.3]}
47. Kg2 {[%clk 0:05:05]} 47... Rb2+ {[%clk 0:08:23.2]} 48. Kg1 {[%clk 0:04:56]}
48... Nxh2 {[%clk 0:08:23.7]} 49. Rxd6 {[%clk 0:04:55]} 49... Nf3+ {[%clk
0:08:22.4]} 50. Kf1 {[%clk 0:04:53.9]} 50... Ra2 {[%clk 0:08:23]} 51. Ra6 {[%clk
0:04:47.6]} 51... Nd2+ {[%clk 0:08:18.7]} 52. Ke1 {[%clk 0:04:37.6]} 52... Ne4
{[%clk 0:08:19.5]} 53. Ne6 {[%clk 0:04:23.6]} 53... Nxg3 {[%clk 0:08:07.8]} 54.
Nf4 {[%clk 0:04:19.7]} 54... Ra1+ {[%clk 0:07:41.2]} 55. Kd2 {[%clk 0:04:11.5]}
55... Ne4+ {[%clk 0:07:41]} 56. Ke3 {[%clk 0:04:00.4]} 56... Re1+ {[%clk
0:07:28.9]} 57. Kd4 {[%clk 0:03:39.1]} 57... Ng3 {[%clk 0:07:17.7]} 58. Rxg6+
{[%clk 0:03:38.7]} 58... Kh7 {[%clk 0:07:17.7]} 59. Rxg3 {[%clk 0:03:39.9]}
59... Ra1 {[%clk 0:07:15]} 60. Rh3+ {[%clk 0:03:39.6]} 60... Kg8 {[%clk
0:07:15.5]} 61. Rg3+ {[%clk 0:03:34]} 61... Kf7 {[%clk 0:07:13.2]} 62. Ke5
{[%clk 0:03:08.6]} 1/2-1/2

[Event "Lune-dì-rapid!"]
[Site "Chess.com"]
[Date "2020.04.13"]
[Round "3"]
[White "crippo"]
[Black "Delsoldato03"]
[Result "1-0"]
[WhiteElo "1532"]
[BlackElo "1188"]
[TimeControl "720+3"]
[EndTime "6:50:28 PDT"]
[Termination "crippo ha vinto per abbandono"]

1. e4 {[%clk 0:12:02.9]} 1... e5 {[%clk 0:11:59.7]} 2. Nf3 {[%clk 0:12:03.6]}
2... Nc6 {[%clk 0:12:00.5]} 3. Bc4 {[%clk 0:12:04.6]} 3... Bc5 {[%clk 0:11:59]}
4. d3 {[%clk 0:12:06.4]} 4... Nf6 {[%clk 0:11:56.5]} 5. Nc3 {[%clk 0:12:06.9]}
5... d6 {[%clk 0:11:45.4]} 6. Bg5 {[%clk 0:12:06.5]} 6... h6 {[%clk 0:11:38.4]}
7. Bh4 {[%clk 0:12:07.9]} 7... Be6 {[%clk 0:11:25]} 8. Bb3 {[%clk 0:12:03.6]}
8... Qd7 {[%clk 0:10:52.3]} 9. O-O {[%clk 0:12:00.9]} 9... O-O-O {[%clk
0:10:52.1]} 10. Ba4 {[%clk 0:12:01.3]} 10... g5 {[%clk 0:10:46.2]} 11. Bg3
{[%clk 0:12:01.8]} 11... Qe8 {[%clk 0:10:07.7]} 12. a3 {[%clk 0:11:16.3]} 12...
a6 {[%clk 0:10:02.2]} 13. b4 {[%clk 0:11:16.7]} 13... Ba7 {[%clk 0:09:46.3]} 14.
b5 {[%clk 0:11:18.3]} 14... axb5 {[%clk 0:09:44]} 15. Nxb5 {[%clk 0:11:19.3]}
15... Bb6 {[%clk 0:09:32]} 16. d4 {[%clk 0:11:16.8]} 16... Nxd4 {[%clk
0:09:02.5]} 17. Nfxd4 {[%clk 0:11:13.3]} 17... Bxd4 {[%clk 0:08:55.5]} 18. Na7+
{[%clk 0:11:13.6]} 18... Kb8 {[%clk 0:08:42.4]} 19. Bxe8 {[%clk 0:11:14.4]}
19... Bxa1 {[%clk 0:08:41.6]} 20. Qxa1 {[%clk 0:11:13.2]} 20... Rdxe8 {[%clk
0:08:41]} 21. Nb5 {[%clk 0:11:13.6]} 21... Bc4 {[%clk 0:08:38.7]} 22. Rb1 {[%clk
0:11:12.1]} 22... Nxe4 {[%clk 0:08:34.4]} 23. Qb2 {[%clk 0:11:05.1]} 23... Nc5
{[%clk 0:08:13]} 24. Qb4 {[%clk 0:11:00]} 24... Be2 {[%clk 0:07:38.4]} 25. Nxc7
{[%clk 0:10:47.4]} 25... Kxc7 {[%clk 0:07:34.8]} 26. Qb6+ {[%clk 0:10:48.3]}
26... Kd7 {[%clk 0:07:24.9]} 27. Re1 {[%clk 0:10:47.7]} 27... Ba6 {[%clk
0:07:12.4]} 28. Rd1 {[%clk 0:10:44.2]} 1-0